bitfinex/quotes_SOLUSD_20241231
["timestamp","ask_amount","ask_price","bid_price","bid_amount"]
[1735610734838,0.98936931,189.54,189.42,23.776884]
[1735610735041,0.98936931,189.54,189.45,15.07375442]
[1735610735249,0.98936931,189.54,189.46,15.07375442]
[1735610736619,0.98936931,189.54,189.45,15.07375442]
[1735610738136,1.68703653,189.51,189.43,15.07375442]
[1735610738832,1.68703653,189.51,189.44,15.07375442]
[1735610739012,0.6975,189.51,189.45,15.07375442]
[1735610739216,0.6975,189.51,189.46,15.07375442]
[1735610739639,0.6975,189.51,189.45,15.07375442]
[1735610740434,0.6975,189.51,189.46,15.07375442]
[1735610740836,20.0,189.52,189.46,15.07375442]
[1735610742138,6.5043,189.55,189.48,15.07375442]
[1735610743939,6.5043,189.55,189.49,15.07375442]
[1735610744144,6.5043,189.55,189.51,15.07375442]
[1735610744348,6.1403,189.6,189.54,15.07375442]
[1735610746330,6.1403,189.6,189.55,15.07375442]
[1735610746730,6.1403,189.65,189.57,15.07375442]
[1735610746923,0.98877318,189.68,189.61,15.07375442]
[1735610747118,6.1403,189.69,189.61,15.07375442]
[1735610747119,7.12892247,189.69,189.61,15.07375442]
[1735610747830,6.1403,189.69,189.63,15.07375442]
[1735610749550,6.1403,189.69,189.64,15.07375442]
[1735610750454,0.6975,189.71,189.65,15.07375442]
[1735610750655,6.1403,189.73,189.67,15.07375442]
[1735610751038,6.1403,189.73,189.68,15.07375442]
[1735610752247,0.98821546,189.72,189.66,15.07375442]
[1735610752448,0.98841483,189.74,189.65,15.07375442]
[1735610753034,20.0,189.75,189.67,15.07375442]
[1735610754454,20.0,189.75,189.68,15.07375442]
[1735610754642,0.6975,189.76,189.69,15.07375442]
[1735610757059,0.98821741,189.75,189.68,15.07375442]
[1735610757228,0.6975,189.76,189.68,15.07375442]
[1735610759671,0.98824321,189.75,189.66,15.07375442]
[1735610760155,20.98824321,189.75,189.66,15.07375442]
[1735610764960,20.98824321,189.75,189.65,15.07375442]
[1735610766262,20.98824321,189.75,189.66,9.63684717]
[1735610768449,0.6975,189.76,189.71,9.63684717]
[1735610768964,6.5007,189.78,189.71,9.63684717]
[1735610769365,6.5007,189.78,189.72,9.63684717]
[1735610771263,6.5007,189.78,189.73,9.63684717]
[1735610773470,6.5087,189.83,189.74,9.63684717]
[1735610773654,0.98793197,189.82,189.74,9.63684717]
[1735610777874,0.98793197,189.82,189.73,9.63684717]
[1735610778673,0.98793197,189.82,189.71,1.6391]
[1735610778674,20.0,189.8,189.69,23.776884]
[1735610778863,0.98800724,189.79,189.69,9.63684717]
[1735610779064,0.98800724,189.79,189.7,9.63684717]
[1735610782890,0.98800724,189.79,189.72,9.63684717]
[1735610783094,6.5087,189.83,189.73,9.63684717]
[1735610783282,0.98791538,189.82,189.73,9.63684717]
[1735610783481,6.5087,189.83,189.74,9.63684717]
[1735610783690,0.98787632,189.82,189.74,9.63684717]
[1735610784073,6.5087,189.83,189.74,9.63684717]
[1735610785275,0.98786618,189.82,189.73,9.63684717]
[1735610786294,0.98786618,189.82,189.71,9.63684717]
[1735610786497,0.98786618,189.82,189.7,9.63684717]
[1735610787292,0.98786618,189.82,189.72,9.63684717]
[1735610787496,0.98786618,189.82,189.73,9.63684717]
[1735610788513,0.98786618,189.82,189.74,9.63684717]
[1735610788908,6.5087,189.83,189.76,9.63684717]
[1735610789419,6.5087,189.83,189.75,9.63684717]
[1735610789609,6.5087,189.83,189.76,9.63684717]
[1735610790926,0.98777083,189.82,189.75,9.63684717]
[1735610791317,6.5087,189.83,189.75,9.63684717]
[1735610793829,6.5087,189.83,189.74,9.63684717]
[1735610794200,6.5087,189.83,189.75,9.63684717]
[1735610795030,6.5087,189.83,189.69,13.1791]
[1735610795229,20.0,189.8,189.69,13.1791]
[1735610795512,0.98808839,189.79,189.71,9.63684717]
[1735610796019,0.98808839,189.79,189.69,13.1791]
[1735610796320,0.98808839,189.79,189.71,9.63684717]
[1735610797215,0.98808839,189.79,189.69,13.1791]
[1735610797400,0.98808839,189.79,189.71,9.63684717]
[1735610797591,0.98808839,189.79,189.69,9.63684717]
[1735610798210,0.98808839,189.79,189.7,9.63684717]
[1735610799308,0.98808839,189.79,189.71,9.63684717]
[1735610799921,0.98808839,189.79,189.7,9.63684717]
[1735610801999,20.0,189.8,189.71,9.63684717]
[1735610802697,0.98803154,189.79,189.72,9.63684717]
[1735610803006,0.98803154,189.79,189.71,9.63684717]
[1735610805842,0.98803154,189.79,189.7,9.63684717]
[1735610806040,0.6975,189.78,189.69,9.63684717]
[1735610806341,1.68571531,189.78,189.7,9.63684717]
[1735610806697,1.68571531,189.78,189.69,9.63684717]
[1735610807826,6.4066,189.77,189.68,9.63684717]
[1735610808020,0.98825303,189.76,189.67,9.63684717]
[1735610808823,0.98825303,189.76,189.66,9.63684717]
[1735610809028,20.0,189.74,189.65,9.63684717]
[1735610809204,0.9884362,189.73,189.64,9.63684717]
[1735610813639,0.6975,189.71,189.61,9.63684717]
[1735610813939,0.98865428,189.7,189.61,9.63684717]
[1735610814632,6.2582,189.72,189.68,9.63684717]
[1735610819037,0.6975,189.76,189.69,9.63684717]
[1735610819335,6.2582,189.77,189.71,9.63684717]
[1735610819535,6.2582,189.77,189.72,9.63684717]
[1735610820331,6.2582,189.77,189.71,9.63684717]
[1735610821841,6.2582,189.77,189.7,9.63684717]
[1735610822137,6.2582,189.77,189.71,9.63684717]
[1735610822840,6.2582,189.77,189.69,9.63684717]
[1735610823041,0.98817365,189.76,189.69,9.63684717]
[1735610823539,0.98817365,189.76,189.68,9.63684717]
[1735610823713,0.98817365,189.76,189.65,9.63684717]
[1735610825539,20.0,189.74,189.65,9.63684717]
[1735610825716,0.98837777,189.73,189.63,23.776884]
[1735610825917,0.98837777,189.73,189.62,9.63684717]
[1735610826927,0.98837777,189.73,189.63,9.63684717]
[1735610827528,6.0593,189.72,189.6,9.63684717]
[1735610827742,0.98865132,189.71,189.6,9.63684717]
[1735610828329,0.98865132,189.71,189.61,9.63684717]
[1735610828519,0.98865132,189.71,189.62,9.63684717]
[1735610829145,0.98865132,189.71,189.63,9.63684717]
[1735610830741,6.0593,189.72,189.64,9.63684717]
[1735610831038,6.0593,189.72,189.65,9.63684717]
[1735610831636,0.98838918,189.71,189.65,9.63684717]
[1735610831829,0.98838918,189.71,189.64,9.63684717]
[1735610832542,6.0593,189.72,189.64,9.63684717]
[1735610832736,6.0593,189.72,189.65,9.63684717]
[1735610832924,6.0593,189.72,189.67,9.63684717]
[1735610833126,7.04754346,189.77,189.67,9.63684717]
[1735610833431,7.04754346,189.77,189.68,9.63684717]
[1735610833937,7.04754346,189.77,189.67,9.63684717]
[1735610834330,7.04754346,189.77,189.58,1.5958]
[1735610834331,6.7568,189.72,189.58,1.5958]
[1735610834522,0.98864191,189.71,189.59,9.63684717]
[1735610834923,20.0,189.69,189.58,9.63684717]
[1735610835135,0.9887508,189.68,189.58,9.63684717]
[1735610835444,0.9887508,189.68,189.55,23.776884]
[1735610835445,0.9887508,189.68,189.57,9.63684717]
[1735610835644,0.9887508,189.68,189.58,29.63684717]
[1735610835942,0.9887508,189.68,189.57,9.63684717]
[1735610836258,20.0,189.64,189.54,1.5958]
[1735610836425,0.98895871,189.63,189.5,13.192]
[1735610836625,0.98895871,189.63,189.51,9.63684717]
[1735610836826,0.98895871,189.63,189.51,23.776884]
[1735610837036,6.0593,189.62,189.49,11.23264717]
[1735610837346,0.98913504,189.61,189.49,11.23264717]
[1735610837739,0.98913504,189.61,189.5,23.776884]
[1735610837937,20.0,189.59,189.48,9.63684717]
[1735610838149,0.98923552,189.58,189.48,9.63684717]
[1735610838547,0.98923552,189.58,189.47,9.63684717]
[1735610838842,6.0593,189.57,189.47,23.776884]
[1735610839044,6.0593,189.57,189.49,33.41373117]
[1735610839228,6.0593,189.57,189.5,9.63684717]
[1735610839858,0.6975,189.59,189.46,23.776884]
[1735610839859,0.6975,189.59,189.51,9.63684717]
[1735610840060,0.6975,189.59,189.52,9.63684717]
[1735610840241,6.0593,189.61,189.52,9.63684717]
[1735610840832,6.0593,189.61,189.53,9.63684717]
[1735610841632,6.0593,189.61,189.52,9.63684717]
[1735610842454,6.0593,189.61,189.52,15.07727256]
[1735610842638,0.98898245,189.6,189.51,15.07727256]
[1735610842833,0.98898245,189.6,189.5,15.07727256]
[1735610843038,0.98898245,189.6,189.49,28.27047256]
[1735610843340,6.0593,189.61,189.52,23.776884]
[1735610843547,6.0593,189.61,189.52,15.07727256]
[1735610843851,0.98900509,189.6,189.5,38.85415656]
[1735610844070,6.0593,189.61,189.5,38.85415656]
[1735610844246,6.0593,189.61,189.53,15.07727256]
[1735610844449,6.0593,189.61,189.54,15.07727256]
[1735610844634,6.0593,189.61,189.52,15.07727256]
[1735610845035,6.0593,189.61,189.53,20.0]
[1735610845235,6.0593,189.61,189.54,15.07727256]
[1735610845751,6.0593,189.61,189.53,15.07727256]
[1735610846956,6.0593,189.61,189.52,38.85415656]
[1735610847331,0.98897432,189.6,189.51,15.07727256]
[1735610847734,0.98897432,189.6,189.47,13.1947]
[1735610847735,0.98897432,189.6,189.5,15.07727256]
[1735610848162,0.98897432,189.6,189.49,15.07727256]
[1735610848330,0.98897432,189.6,189.48,38.85415656]
[1735610849157,0.98897432,189.6,189.5,15.07727256]
[1735610849459,0.98897432,189.6,189.49,15.07727256]
[1735610850461,0.98897432,189.6,189.5,15.07727256]
[1735610850758,0.98897432,189.6,189.49,15.07727256]
[1735610854258,0.98897432,189.6,189.5,15.07727256]
[1735610855254,0.98897432,189.6,189.51,15.07727256]
[1735610855459,0.98897432,189.6,189.52,15.07727256]
[1735610856148,6.0593,189.61,189.54,15.07727256]
[1735610856761,6.0593,189.61,189.53,15.07727256]
[1735610858859,6.0593,189.61,189.51,15.07727256]
[1735610859048,0.98896588,189.6,189.51,15.07727256]
[1735610859363,0.98896588,189.6,189.5,15.07727256]
[1735610859861,0.98896588,189.6,189.48,35.07727256]
[1735610860042,0.98896588,189.6,189.48,20.0]
[1735610861150,0.98896588,189.6,189.45,14.7912]
[1735610861151,0.6975,189.57,189.45,29.86847256]
[1735610861349,6.1786,189.55,189.46,23.776884]
[1735610861551,0.98936029,189.54,189.46,23.776884]
[1735610861763,0.98936029,189.54,189.46,38.85415656]
[1735610863865,6.1786,189.55,189.46,38.85415656]
[1735610864052,6.1786,189.55,189.49,15.07727256]
[1735610864254,6.1786,189.55,189.49,9.65282777]
[1735610864676,6.1786,189.55,189.47,22.84752777]
[1735610867353,6.1786,189.55,189.48,9.65282777]
[1735610868083,6.1786,189.55,189.49,9.65282777]
[1735610871072,6.1786,189.55,189.48,9.65282777]
[1735610872341,6.1786,189.55,189.49,9.65282777]
[1735610872545,6.1786,189.55,189.48,33.42971177]
[1735610874376,6.1001,189.59,189.5,9.65282777]
[1735610874565,6.1001,189.59,189.52,9.65282777]
[1735610874753,6.1001,189.59,189.54,22.84262777]
[1735610876967,6.1001,189.59,189.54,13.1898]
[1735610880005,6.1001,189.59,189.52,9.65282777]
[1735610881405,6.1001,189.59,189.53,23.776884]
[1735610883192,6.1001,189.59,189.52,9.65282777]
[1735610883388,6.1001,189.59,189.51,9.65282777]
[1735610883777,6.1001,189.59,189.52,23.776884]
[1735610884578,0.98905561,189.58,189.5,22.84482777]
[1735610884998,0.98905561,189.58,189.5,13.192]
[1735610885169,0.98905561,189.58,189.49,9.65282777]
[1735610886700,0.98905561,189.58,189.47,13.1946]
[1735610887194,0.6975,189.55,189.46,9.65282777]
[1735610887381,1.68686375,189.55,189.46,9.65282777]
[1735610888685,1.68686375,189.55,189.47,9.65282777]
[1735610890596,6.1001,189.59,189.5,9.65282777]
[1735610890978,6.1001,189.59,189.51,9.65282777]
[1735610891500,6.1001,189.59,189.5,9.65282777]
[1735610892582,6.1001,189.59,189.52,9.65282777]
[1735610893290,6.1001,189.59,189.51,9.65282777]
[1735610893699,6.1001,189.59,189.53,9.65282777]
[1735610893896,6.1001,189.59,189.54,9.65282777]
[1735610894102,6.0559,189.64,189.56,9.65282777]
[1735610894288,6.0559,189.64,189.57,9.65282777]
[1735610894690,6.0559,189.64,189.56,9.65282777]
[1735610894892,6.0559,189.64,189.55,29.65282777]
[1735610896305,6.0559,189.64,189.55,9.65282777]
[1735610896617,6.0559,189.64,189.54,9.65282777]
[1735610896618,0.98886232,189.63,189.54,9.65282777]
[1735610896988,0.98886232,189.63,189.55,9.65282777]
[1735610897791,0.98887021,189.63,189.55,9.65282777]
[1735610898913,0.98887021,189.63,189.54,9.65282777]
[1735610899100,0.98887021,189.63,189.53,9.65282777]
[1735610902103,0.98887021,189.63,189.51,22.84472777]
[1735610902502,20.0,189.61,189.51,22.84472777]
[1735610902701,0.98913872,189.6,189.51,13.1919]
[1735610904422,0.98913872,189.6,189.51,22.84472777]
[1735610906313,0.98913872,189.6,189.52,9.65282777]
[1735610906634,0.98908052,189.63,189.54,9.65282777]
[1735610908805,6.0559,189.64,189.55,9.65282777]
[1735610910124,6.0559,189.64,189.56,9.65282777]
[1735610911913,6.0559,189.64,189.55,9.65282777]
[1735610912108,6.0559,189.64,189.56,9.65282777]
[1735610912422,6.0559,189.64,189.59,9.65282777]
[1735610913632,6.0559,189.64,189.56,13.1879]
[1735610913936,6.0559,189.64,189.57,33.42971177]
[1735610915631,6.0559,189.64,189.56,22.84072777]
[1735610915814,0.98882052,189.63,189.53,22.84312777]
[1735610916621,0.98882052,189.63,189.52,9.65282777]
[1735610917117,20.0,189.61,189.52,9.65282777]
[1735610917317,0.98907902,189.6,189.5,13.1923]
[1735610917531,0.98907902,189.6,189.5,22.84512777]
[1735610918531,0.98907902,189.6,189.49,23.776884]
[1735610918837,0.98907902,189.6,189.5,9.65282777]
[1735610921827,0.6975,189.58,189.47,22.84742777]
[1735610922027,0.98930211,189.57,189.47,22.84742777]
[1735610922429,20.0,189.56,189.45,9.65282777]
[1735610922630,0.98939918,189.55,189.45,9.65282777]
[1735610923539,0.98939918,189.55,189.44,22.84942777]
[1735610923748,6.3363,189.54,189.44,22.84942777]
[1735610923933,0.9894899,189.53,189.44,22.84942777]
[1735610925545,0.9894899,189.53,189.44,9.65282777]
[1735610925843,0.6975,189.52,189.42,9.65282777]
[1735610926048,0.6975,189.52,189.39,9.65282777]
[1735610926049,20.98960381,189.51,189.39,9.65282777]
[1735610926343,20.0,189.47,189.38,9.65282777]
[1735610926528,0.989828,189.46,189.37,9.65282777]
[1735610926728,7.0338,189.45,189.35,9.65282777]
[1735610926926,0.98993808,189.44,189.36,9.65282777]
[1735610927120,0.98993808,189.44,189.34,23.776884]
[1735610927325,0.98993808,189.44,189.3,1.6406]
[1735610927545,0.98993808,189.44,189.33,9.65282777]
[1735610928443,6.3363,189.43,189.29,28.31543484]
[1735610928743,0.99019936,189.42,189.32,15.10893484]
[1735610929340,0.99019936,189.42,189.31,15.10893484]
[1735610929754,0.99019936,189.42,189.32,15.10893484]
[1735610930752,20.0,189.4,189.31,15.10893484]
[1735610930921,0.99018214,189.39,189.31,15.10893484]
[1735610932346,0.99018214,189.39,189.3,15.10893484]
[1735610932868,20.0,189.4,189.33,15.10893484]
[1735610933461,20.0,189.4,189.32,15.10893484]
[1735610934051,0.99011737,189.39,189.31,15.10893484]
[1735610934355,0.99011737,189.39,189.32,15.10893484]
[1735610935043,0.99014403,189.42,189.33,15.10893484]
[1735610935248,0.99014403,189.42,189.32,15.10893484]
[1735610935952,0.99014403,189.42,189.33,15.10893484]
[1735610937766,0.99014403,189.42,189.32,15.10893484]
[1735610938670,0.99014403,189.42,189.31,15.10893484]
[1735610938873,0.99014403,189.42,189.3,38.88581884]
[1735610939687,20.0,189.4,189.3,38.88581884]
[1735610939858,0.99020344,189.39,189.29,28.31543484]
[1735610941376,6.059,189.37,189.28,15.10893484]
[1735610941580,0.99036315,189.36,189.26,15.10893484]
[1735610943265,0.99036315,189.36,189.27,15.10893484]
[1735610944392,0.99036315,189.36,189.26,38.88581884]
[1735610944685,0.99036315,189.36,189.25,13.2095]
[1735610944686,0.99036315,189.36,189.25,28.31843484]
[1735610944986,0.99036315,189.36,189.26,15.10893484]
[1735610945283,0.99036315,189.36,189.23,20.0]
[1735610945461,6.059,189.35,189.23,20.0]
[1735610945790,6.059,189.35,189.19,28.32303484]
[1735610945791,0.6975,189.31,189.19,28.32303484]
[1735610946076,6.5004,189.29,189.19,13.2141]
[1735610946281,0.99078618,189.28,189.19,28.32303484]
[1735610946463,0.99078618,189.28,189.18,35.10893484]
[1735610946665,0.99078618,189.28,189.17,15.10893484]
[1735610947676,0.99078618,189.28,189.16,15.10893484]
[1735610948071,0.99078618,189.28,189.18,15.10893484]
[1735610948769,0.99078618,189.28,189.17,15.10893484]
[1735610950676,0.99078618,189.28,189.17,23.776884]
[1735610951293,0.99078618,189.28,189.17,38.88581884]
[1735610951595,0.99078618,189.28,189.18,15.10893484]
[1735610951772,0.99078618,189.28,189.17,38.88581884]
[1735610952272,0.99078618,189.28,189.18,15.10893484]
[1735610953066,0.99078618,189.28,189.17,38.88581884]
[1735610953379,0.99078618,189.28,189.19,23.776884]
[1735610953586,0.99078618,189.28,189.19,38.88581884]
[1735610953967,0.99078618,189.28,189.18,28.32383484]
[1735610954589,0.99078618,189.28,189.2,28.32243484]
[1735610954895,6.5004,189.29,189.22,38.88581884]
[1735610955190,6.5004,189.29,189.21,38.88581884]
[1735610955797,6.5004,189.29,189.22,15.10893484]
[1735610956094,6.5004,189.29,189.2,35.10893484]
[1735610956272,0.99069205,189.28,189.2,35.10893484]
[1735610956675,0.99069205,189.28,189.18,38.88581884]
[1735610956874,0.99069205,189.28,189.19,15.10893484]
[1735610957080,6.5004,189.29,189.2,15.10893484]
[1735610958407,6.5004,189.29,189.19,15.10893484]
[1735610958584,6.5004,189.29,189.18,15.10893484]
[1735610958585,0.99066863,189.28,189.18,15.10893484]
[1735610958896,6.5004,189.29,189.19,15.10893484]
[1735610959298,0.99069032,189.28,189.19,15.10893484]
[1735610960075,0.99069032,189.28,189.21,23.776884]
[1735610960283,6.5004,189.29,189.24,9.67904184]
[1735610960794,6.5004,189.29,189.23,9.67904184]
[1735610961601,6.5004,189.29,189.24,9.67904184]
[1735610961787,6.5004,189.29,189.23,33.45592584]
[1735610962689,0.6975,189.31,189.25,23.776884]
[1735610962899,6.0042,189.33,189.26,9.67904184]
[1735610963992,6.0042,189.33,189.25,33.45592584]
[1735610964495,6.0042,189.33,189.25,23.776884]
[1735610965298,6.0042,189.33,189.25,33.45592584]
[1735610966787,6.0042,189.33,189.27,9.67904184]
[1735610966987,6.0042,189.33,189.28,9.67904184]
[1735610967698,6.0042,189.33,189.27,29.67904184]
[1735610969203,6.0042,189.33,189.28,23.776884]
[1735610969406,6.0042,189.33,189.28,33.45592584]
[1735610969694,6.7017,189.41,189.29,9.67904184]
[1735610969875,6.7017,189.41,189.3,9.67904184]
[1735610969876,0.99019012,189.4,189.3,9.67904184]
[1735610970075,6.7017,189.41,189.32,9.67904184]
[1735610971001,6.7017,189.41,189.32,33.45592584]
[1735610971898,6.7017,189.41,189.33,46.66032584]
[1735610972082,6.0042,189.41,189.35,9.67904184]
[1735610972278,6.0042,189.41,189.35,23.776884]
[1735610972800,6.0042,189.41,189.34,9.67904184]
[1735610973098,6.0042,189.41,189.33,22.88344184]
[1735610973295,6.0042,189.41,189.34,9.67904184]
[1735610973476,6.0042,189.41,189.29,23.776884]
[1735610973676,0.99004717,189.4,189.32,20.0]
[1735610973881,0.99004717,189.4,189.33,20.0]
[1735610974299,0.99004717,189.4,189.32,20.0]
[1735610974801,6.0042,189.41,189.33,23.776884]
[1735610975008,6.0042,189.41,189.33,38.88780744]
[1735610975307,6.0042,189.41,189.35,15.11092344]
[1735610975477,6.0042,189.41,189.34,15.11092344]
[1735610975682,6.0042,189.41,189.33,38.88780744]
[1735610975982,6.0042,189.41,189.33,15.11092344]
[1735610976180,0.99004032,189.4,189.33,15.11092344]
[1735610976408,0.99004032,189.4,189.32,35.11092344]
[1735610976704,0.99004032,189.4,189.33,15.11092344]
[1735610977103,0.99004032,189.4,189.32,35.11092344]
[1735610980209,0.99004032,189.4,189.31,15.11092344]
[1735610980412,0.99004032,189.4,189.3,15.11092344]
[1735610980901,0.99004032,189.4,189.31,35.11092344]
[1735610982311,0.99004032,189.4,189.31,20.0]
[1735610986419,0.99004032,189.4,189.33,15.11092344]
[1735610986737,6.0042,189.41,189.34,15.11092344]
[1735610988327,6.0042,189.41,189.37,15.11092344]
[1735610988618,1.68749589,189.45,189.37,15.11092344]
[1735610990316,1.68749589,189.45,189.37,23.776884]
[1735610990497,0.98979288,189.44,189.36,15.11092344]
[1735610991120,0.98979288,189.44,189.35,15.11092344]
[1735610991924,0.98979288,189.44,189.33,15.11092344]
[1735610992717,0.98979288,189.44,189.32,28.31602344]
[1735610994029,0.98979288,189.44,189.35,38.88780744]
[1735610994211,1.68744103,189.45,189.37,15.11092344]
[1735610995028,1.68744103,189.45,189.36,15.11092344]
[1735610995232,1.68744103,189.45,189.35,15.11092344]
[1735610998751,1.68744103,189.45,189.34,28.31462344]
[1735610999039,1.68744103,189.45,189.34,13.2037]
[1735610999329,1.68744103,189.45,189.34,28.31462344]
[1735610999539,1.68744103,189.45,189.35,15.11092344]
[1735611000211,1.68744103,189.45,189.37,15.11092344]
[1735611000416,0.6975,189.45,189.37,15.11092344]
[1735611000718,1.68728421,189.45,189.37,15.11092344]
[1735611000930,1.68728421,189.45,189.36,28.31322344]
[1735611001340,1.68728421,189.45,189.38,13.2003]
[1735611001341,0.98978421,189.45,189.38,13.2003]
[1735611004115,6.0687,189.46,189.38,28.31122344]
[1735611006938,6.0687,189.46,189.41,20.0]
[1735611007307,7.2258,189.5,189.42,15.11092344]
[1735611007512,7.2258,189.5,189.43,15.11092344]
[1735611007721,6.5283,189.5,189.45,15.11092344]
[1735611007928,6.1505,189.54,189.46,15.11092344]
[1735611008127,6.1505,189.54,189.47,15.11092344]
[1735611008322,6.1505,189.54,189.47,9.65518617]
[1735611008632,6.1505,189.54,189.48,9.65518617]
[1735611010441,6.1505,189.54,189.5,20.0]
[1735611011240,6.1505,189.54,189.48,15.08430573]
[1735611013625,6.1505,189.58,189.51,20.0]
[1735611014344,6.1505,189.58,189.51,15.08430573]
[1735611014639,6.1505,189.58,189.52,15.08430573]
[1735611014939,6.1505,189.58,189.53,15.08430573]
[1735611015348,6.1505,189.62,189.54,15.08430573]
[1735611015538,0.98899102,189.61,189.54,15.08430573]
[1735611015941,0.98899102,189.61,189.51,36.968784]
[1735611015942,6.1505,189.62,189.55,15.08430573]
[1735611016140,6.1505,189.62,189.56,15.08430573]
[1735611016442,6.1505,189.62,189.55,15.08430573]
[1735611017637,6.1505,189.62,189.56,15.08430573]
[1735611017929,6.1505,189.62,189.55,15.08430573]
[1735611024034,6.1505,189.62,189.56,15.08430573]
[1735611027257,0.6975,189.64,189.58,15.08430573]
[1735611027460,0.6975,189.64,189.59,15.08430573]
[1735611027634,6.3197,189.66,189.59,15.08430573]
[1735611027945,6.3197,189.66,189.55,23.776884]
[1735611028155,7.30831378,189.72,189.65,15.08430573]
[1735611028359,7.30831378,189.72,189.63,35.08430573]
[1735611028360,6.3197,189.72,189.64,20.0]
[1735611028652,6.3197,189.72,189.69,15.08430573]
[1735611029231,6.3197,189.72,189.6,13.1853]
[1735611029431,0.98831122,189.71,189.64,15.08430573]
[1735611029838,0.98831122,189.71,189.65,15.08430573]
[1735611030248,0.98831122,189.71,189.65,9.63746939]
[1735611030552,0.98831122,189.71,189.66,9.63746939]
[1735611030954,6.3197,189.72,189.68,9.63746939]
[1735611031155,6.3197,189.77,189.71,9.63746939]
[1735611032255,6.3197,189.77,189.71,15.04892426]
[1735611032457,6.3197,189.77,189.73,15.04892426]
[1735611033162,7.0172,189.82,189.74,15.04892426]
[1735611034134,7.0172,189.82,189.73,15.04892426]
[1735611034340,0.98791706,189.81,189.73,15.04892426]
[1735611034660,7.0172,189.82,189.73,15.04892426]
[1735611035047,7.0172,189.82,189.74,15.04892426]
[1735611035436,7.0172,189.82,189.75,15.04892426]
[1735611035638,0.98784477,189.81,189.77,20.0]
[1735611036039,7.0172,189.82,189.77,20.0]
[1735611036362,7.0172,189.82,189.75,15.04892426]
[1735611036533,7.0172,189.82,189.74,15.04892426]
[1735611036737,0.98790187,189.81,189.76,20.0]
[1735611037542,7.0172,189.82,189.76,20.0]
[1735611038266,7.0172,189.82,189.74,15.04892426]
[1735611038451,0.98791934,189.81,189.76,20.0]
[1735611039763,7.0172,189.82,189.75,23.776884]
[1735611039954,7.0172,189.82,189.75,38.82580826]
[1735611045456,7.0172,189.82,189.75,23.776884]
[1735611047476,7.0172,189.82,189.71,13.1777]
[1735611047646,0.98787318,189.81,189.67,14.8372]
[1735611047846,0.98787318,189.81,189.69,15.04892426]
[1735611048254,0.98787318,189.81,189.7,23.776884]
[1735611048774,0.98787318,189.81,189.67,16.70602426]
[1735611049074,30.418884,189.8,189.65,15.04892426]
[1735611049260,0.98840896,189.79,189.65,15.04892426]
[1735611049574,20.0,189.77,189.64,38.82580826]
[1735611049751,0.98840912,189.76,189.65,15.04892426]
[1735611050991,0.98840912,189.76,189.64,38.82580826]
[1735611051484,7.3395,189.75,189.64,15.04892426]
[1735611051782,0.98850358,189.74,189.62,15.04892426]
[1735611051993,0.98850358,189.74,189.63,23.776884]
[1735611052166,0.98850358,189.74,189.62,15.04892426]
[1735611052375,20.0,189.72,189.61,9.64033365]
[1735611052566,6.642,189.7,189.54,1.6223]
[1735611052761,1.68631455,189.69,189.56,9.64033365]
[1735611053371,1.68631455,189.69,189.57,9.64033365]
[1735611053551,1.68631455,189.69,189.58,9.64033365]
[1735611053751,1.68631455,189.69,189.59,9.64033365]
[1735611056278,1.68631455,189.69,189.59,15.06797267]
[1735611056804,1.68631455,189.69,189.6,15.06797267]
[1735611057492,1.68631455,189.69,189.61,15.06797267]
[1735611057865,1.68631455,189.69,189.62,15.06797267]
[1735611058096,0.6975,189.69,189.62,15.06797267]
[1735611060408,6.642,189.7,189.65,15.06797267]
[1735611061914,0.98843984,189.69,189.62,15.06797267]
[1735611062400,6.642,189.7,189.62,15.06797267]
[1735611062787,0.98853831,189.69,189.62,15.06797267]
[1735611064514,6.642,189.7,189.63,15.06797267]
[1735611064724,6.642,189.7,189.64,15.06797267]
[1735611065499,6.642,189.7,189.66,15.06797267]
[1735611065909,6.642,189.7,189.65,15.06797267]
[1735611068722,6.642,189.7,189.65,23.776884]
[1735611070540,0.9884009,189.69,189.61,35.06797267]
[1735611070818,6.642,189.7,189.62,23.776884]
[1735611071198,0.988528,189.69,189.62,38.84485667]
[1735611071400,6.642,189.7,189.62,38.84485667]
[1735611071814,0.98854911,189.69,189.61,15.06797267]
[1735611072037,0.98854911,189.69,189.58,15.06797267]
[1735611072318,0.6975,189.68,189.56,15.06797267]
[1735611072522,0.9888286,189.67,189.56,15.06797267]
[1735611073236,20.9888286,189.67,189.55,15.06797267]
[1735611073418,6.6298,189.66,189.54,15.06797267]
[1735611073601,0.988914,189.65,189.54,15.06797267]